bitfinex/quotes_ETHUSD_20250827
["timestamp","ask_amount","ask_price","bid_price","bid_amount"]
[1756306962078,3.022,4630.8,4628.5,3.778]
[1756306962079,2.16024713,4629.1,4628.5,0.108]
[1756306962251,0.108,4628.8,4628.6,3.778]
[1756306962447,0.108,4628.8,4628.1,0.108]
[1756306962792,0.108,4628.8,4628.4,2.16057227]
[1756306963021,0.108,4628.8,4628.5,3.778]
[1756306963502,2.1604353,4628.7,4628.1,0.108]
[1756306963785,2.16043381,4628.7,4628.2,3.778]
[1756306963983,2.16048313,4628.6,4628.2,3.778]
[1756306964149,0.108,4628.3,4628.2,3.778]
[1756306964545,0.108,4628.3,4627.4,0.108]
[1756306964872,2.16066721,4628.2,4627.5,3.778]
[1756306965072,0.108,4627.6,4627.5,3.778]
[1756306966494,0.02,4628.8,4628.3,2.16061902]
[1756306966804,0.02,4628.8,4628.4,5.93855216]
[1756306966948,0.02,4628.8,4628.5,2.16052716]
[1756306967272,0.108,4628.6,4628.5,2.16052716]
[1756306967584,0.108,4628.6,4628.4,5.93857127]
[1756306967787,0.108,4628.6,4628.5,2.16052716]
[1756306967953,0.02,4628.8,4628.6,2.16046566]
[1756306968268,0.02,4628.8,4628.7,5.93843381]
[1756306968468,0.02,4628.8,4628.7,6.04643381]
[1756306969450,0.02,4628.8,4628.7,6.04543381]
[1756306969653,0.02,4628.8,4628.7,2.26843381]
[1756306969855,0.02,4628.8,4628.7,6.04543381]
[1756306970093,0.02,4628.8,4628.7,6.9491809]
[1756306970605,0.002,4631.3,4629.7,2.15996716]
[1756306970818,0.108,4630.9,4629.7,7.59896716]
[1756306970968,0.36011853,4630.8,4630.3,2.15968563]
[1756306971306,0.108,4630.6,4630.4,3.777]
[1756306971663,0.108,4630.6,4630.4,5.93660165]
[1756306971862,0.108,4630.6,4629.7,1.93220813]
[1756306972107,0.108,4630.3,4630.0,2.15982721]
[1756306972406,0.108,4630.3,4630.2,2.15973392]
[1756306972902,0.108,4630.3,4630.1,3.777]
[1756306973085,0.1072,4630.3,4629.8,2.15990168]
[1756306973287,0.1072,4630.3,4629.7,1.93220813]
[1756306973489,0.1072,4630.3,4629.8,3.776]
[1756306973692,0.108,4629.8,4629.7,1.662]
[1756306974066,0.108,4629.8,4629.7,5.438]
[1756306974798,2.1599947,4629.7,4629.6,3.776]
[1756306975000,2.16003382,4629.6,4629.0,1.662]
[1756306975200,0.108,4629.1,4629.0,5.438]
[1756306975589,0.108,4629.1,4628.6,2.16047274]
[1756306975787,0.108,4628.7,4628.5,2.16052331]
[1756306975994,0.108,4628.7,4628.3,1.662]
[1756306976169,0.108,4628.7,4628.4,3.776]
[1756306976876,0.108,4628.7,4628.3,3.82262018]
[1756306977096,0.108,4628.7,4628.4,3.776]
[1756306977410,0.108,4628.7,4628.5,3.776]
[1756306977578,3.0,4630.0,4629.1,2.16024554]
[1756306977780,0.108,4629.2,4628.5,0.108]
[1756306977979,2.15992051,4629.8,4628.7,2.1604314]
[1756306978207,0.108,4628.8,4628.7,5.9364314]
[1756306978703,0.108,4628.8,4628.7,3.776]
[1756306978900,0.108,4628.8,4628.7,5.93643381]
[1756306979406,0.33821315,4629.2,4629.0,2.16026434]
[1756306979568,0.33821315,4629.2,4628.7,5.93643381]
[1756306979569,0.108,4629.1,4628.8,2.16038125]
[1756306979768,0.108,4629.1,4628.9,3.775]
[1756306980002,0.108,4629.1,4629.0,2.16029379]
[1756306980409,7.07499999,4630.1,4630.0,2.15982721]
[1756306980610,7.07499999,4630.1,4630.0,3.775]
[1756306980985,7.41312518,4630.1,4630.0,5.93482721]
[1756306981294,7.30512518,4630.1,4630.0,5.93482721]
[1756306981925,6.96699999,4630.1,4630.0,5.93482721]
[1756306982121,6.96699999,4630.1,4630.0,6.87934702]
[1756306982299,0.33810262,4630.7,4630.2,2.15973392]
[1756306982499,0.022,4630.8,4630.6,2.26754735]
[1756306982733,0.022,4630.8,4630.7,5.93450072]
[1756306983933,0.002,4631.3,4631.2,2.15926757]
[1756306984238,0.002,4631.3,4631.2,6.36612816]
[1756306986240,0.002,4631.3,4631.2,2.59112816]
[1756306986544,0.002,4631.3,4631.2,6.36512816]
[1756306986747,0.002,4631.3,4631.2,5.93326757]
[1756306988162,0.002,4631.3,4631.2,2.15926757]
[1756306988825,0.002,4631.3,4631.2,5.93226757]
[1756306989445,0.002,4631.3,4631.2,2.15926757]
[1756306989645,0.002,4631.3,4631.2,3.773]
[1756306990043,0.34004852,4631.3,4631.2,3.773]
[1756306991277,0.58996632,4631.3,4631.2,3.773]
[1756306991945,2.15926976,4631.2,4631.0,3.772]
[1756306992153,2.15926976,4631.2,4630.9,3.772]
[1756306992634,0.58996632,4631.3,4630.9,3.772]
[1756306992835,0.34004852,4631.3,4630.9,3.772]
[1756306993040,2.49927187,4631.3,4630.9,3.772]
[1756306993472,2.49927187,4631.3,4630.6,1.662]
[1756306993473,2.15935742,4631.1,4630.8,0.02]
[1756306993772,2.15927427,4631.2,4630.8,3.792]
[1756306993969,0.108,4630.9,4630.8,0.02]
[1756306994274,6.4541406,4630.9,4630.8,0.02]
[1756306994675,10.1761406,4630.9,4630.8,0.02]
[1756306994975,0.66,4630.7,4629.8,0.02]
[1756306995171,2.81987386,4629.9,4629.8,0.02]
[1756306995470,5.92787386,4629.9,4629.8,0.02]
[1756306995634,6.73664172,4629.9,4629.8,0.02]
[1756306996436,3.91676786,4629.9,4629.8,0.02]
[1756306996634,5.26787386,4629.9,4629.8,0.02]
[1756306996837,0.108,4629.9,4629.8,5.95192051]
[1756306997249,1.663,4631.3,4629.8,5.95192051]
[1756306997514,0.108,4630.1,4629.8,5.95192051]
[1756306997793,0.108,4630.1,4629.9,3.772]
[1756306997995,0.108,4630.1,4629.8,0.02]
[1756306998195,2.15987386,4629.9,4629.8,0.02]
[1756306998492,5.6018406,4629.9,4629.8,0.02]
[1756306998653,5.94002378,4629.9,4629.8,0.02]
[1756306998850,3.78094992,4629.9,4629.8,0.02]
[1756306999072,5.94082378,4629.9,4629.8,0.02]
[1756306999473,3.78094992,4629.9,4629.8,0.02]
[1756306999888,5.94082378,4629.9,4629.8,0.02]
[1756307000097,3.78094992,4629.9,4629.8,0.02]
[1756307000296,3.33818318,4629.9,4629.8,0.02]
[1756307000463,0.33818318,4629.9,4629.8,2.17992051]
[1756307000668,0.33818318,4629.9,4629.8,0.02]
[1756307001266,0.33818318,4629.9,4629.8,0.021]
[1756307001898,0.99818318,4629.9,4629.8,0.021]
[1756307002110,4.22689413,4629.9,4629.8,0.021]
[1756307002498,2.06702027,4629.9,4629.8,0.021]
[1756307002702,5.06702027,4629.9,4629.8,0.021]
[1756307003012,1.86910934,4629.9,4629.8,0.021]
[1756307003226,1.97710934,4629.9,4629.8,0.021]
[1756307003380,4.1369832,4629.9,4629.8,0.021]
[1756307003581,7.1369832,4629.9,4629.8,0.021]
[1756307003780,4.97710934,4629.9,4629.8,0.021]
[1756307004417,0.33818318,4629.9,4629.8,2.18092051]
[1756307004628,0.33818318,4629.9,4629.8,0.021]
[1756307004800,0.33818318,4629.9,4629.8,2.39901256]
[1756307005513,0.002,4630.1,4630.0,2.15982721]
[1756307005727,0.002,4630.1,4629.9,3.772]
[1756307005894,0.002,4630.1,4630.0,2.15982721]
[1756307006435,0.002,4630.1,4629.9,3.772]
[1756307006636,0.002,4630.1,4630.0,2.15982721]
[1756307006931,0.002,4630.1,4630.0,2.95832836]
[1756307008246,0.002,4630.1,4630.0,6.72932836]
[1756307008931,0.002,4630.1,4630.0,3.771]
[1756307009713,0.11,4630.1,4629.9,2.1598561]
[1756307009958,0.11,4630.1,4629.9,2.15987386]
[1756307010249,0.11,4630.1,4629.8,0.021]
[1756307010449,0.11,4630.1,4629.9,3.771]
[1756307010750,0.11,4630.1,4630.0,3.771]
[1756307010924,0.002,4630.1,4630.0,6.5260138]
[1756307013372,1e-08,4630.1,4630.0,7.2940138]
[1756307013573,1e-08,4630.1,4630.0,9.6340138]
[1756307013955,1e-08,4630.1,4630.0,10.2940138]
[1756307014149,1e-08,4630.6,4630.5,2.15959399]
[1756307014362,1e-08,4630.6,4630.5,10.93714932]
[1756307014545,1e-08,4630.6,4630.5,11.57555339]
[1756307015244,0.022,4631.8,4631.7,2.15903447]
[1756307015479,0.022,4631.8,4631.7,7.61162481]
[1756307015695,0.022,4631.8,4631.7,7.59003447]
[1756307015978,0.022,4631.8,4631.7,4.90294827]
[1756307016176,0.022,4631.8,4631.7,8.67294827]
[1756307016573,0.022,4631.8,4631.7,4.90294827]
[1756307017074,0.022,4631.8,4631.7,8.67294827]
[1756307017445,0.022,4631.8,4631.7,4.90294827]
[1756307017672,0.022,4631.8,4631.7,8.67294827]
[1756307018197,0.022,4631.8,4631.7,7.59003447]
[1756307018689,0.022,4631.8,4631.7,3.82003447]
[1756307018844,0.022,4631.8,4631.7,5.431]
[1756307019187,0.13,4631.8,4631.7,3.77]
[1756307019382,2.15907419,4631.7,4631.0,1.661]
[1756307019580,0.44480212,4631.6,4631.1,3.769]
[1756307019878,0.108,4631.2,4631.0,1.661]
[1756307020081,0.108,4631.2,4631.1,3.769]
[1756307020583,0.108,4631.2,4631.0,1.661]
[1756307020783,0.108,4631.2,4630.3,1.661]
[1756307020784,2.26727715,4631.2,4630.3,1.661]
[1756307020958,2.15937406,4631.0,4630.4,3.641]
[1756307021158,2.15950443,4630.7,4630.0,1.769]
[1756307021358,2.15958484,4630.6,4630.1,3.769]
[1756307021553,2.15950532,4630.7,4630.2,3.769]
[1756307021750,0.108,4630.1,4630.0,1.661]
[1756307021952,2.15982721,4630.0,4629.9,0.00351952]
[1756307022167,6.26250559,4630.0,4629.9,0.00351952]
[1756307022503,4.10267838,4630.0,4629.9,0.00351952]
[1756307022802,6.60068962,4630.0,4629.9,0.00351952]
[1756307023352,5.81987386,4629.9,4629.8,0.021]
[1756307023481,5.82006048,4629.5,4629.3,0.001]
[1756307023803,2.82029379,4629.0,4628.8,0.001]
[1756307024108,23.67632614,4629.0,4628.8,0.001]
[1756307024291,7.48129379,4629.0,4628.8,0.001]
[1756307025589,7.81959196,4629.0,4628.8,0.001]
[1756307026395,5.65929817,4629.0,4628.8,0.001]
[1756307026580,3.90422799,4629.0,4628.8,0.001]
[1756307026887,0.90422799,4629.0,4628.8,0.001]
[1756307027217,3.77,4629.6,4628.8,0.001]
[1756307027419,0.66,4629.1,4628.8,0.001]
[1756307027592,2.16029379,4629.0,4628.8,0.001]
[1756307028653,22.01632614,4629.0,4628.9,1e-08]
[1756307029135,2.16034046,4628.9,4628.8,0.001]
[1756307029294,9.62459564,4628.9,4628.8,0.001]
[1756307030134,9.96290274,4628.9,4628.8,0.001]
[1756307032716,2.48156228,4628.9,4628.8,0.001]
[1756307033024,2.49864756,4628.9,4628.8,0.001]
[1756307033549,0.4463071,4628.9,4628.8,0.001]
[1756307034132,3.26664756,4628.9,4628.8,0.001]
[1756307036742,10.03764756,4628.9,4628.8,0.001]
[1756307036942,9.69934046,4628.9,4628.8,0.001]
[1756307037146,10.88530157,4628.9,4628.8,0.001]
[1756307039655,11.22361994,4628.9,4628.8,0.001]
[1756307040310,6.68461994,4628.9,4628.8,0.001]
[1756307040510,2.60665883,4628.9,4628.8,0.001]
[1756307041223,3.26665883,4628.9,4628.8,0.001]
[1756307041751,6.26665883,4628.9,4628.8,0.001]
[1756307044115,6.26665883,4628.9,4627.9,0.001]
[1756307044116,2.82076058,4628.0,4627.9,0.001]
[1756307044315,11.79282952,4628.0,4627.9,0.001]
[1756307044942,12.13119563,4628.0,4627.9,0.001]
[1756307046265,12.33193502,4628.0,4627.9,0.001]
[1756307046433,11.99276891,4628.0,4627.9,0.001]
[1756307046633,11.79202952,4628.0,4627.9,0.001]
[1756307047133,11.99302199,4628.0,4627.9,0.001]
[1756307047565,11.99302199,4628.0,4627.8,0.021]
[1756307047566,5.82099405,4627.5,4627.4,0.001]
[1756307047769,11.81201962,4627.5,4627.4,0.001]
[1756307048136,12.01333414,4627.5,4627.4,0.001]
[1756307048784,11.81201962,4627.5,4627.4,0.001]
[1756307048980,12.0133044,4627.5,4627.4,0.001]
[1756307049341,12.15043296,4627.5,4627.4,0.001]
[1756307049674,12.15043296,4627.5,4626.3,0.001]
[1756307049675,5.82127428,4626.9,4626.3,0.001]
[1756307049842,12.36203877,4626.9,4626.3,0.001]
[1756307050475,8.59103877,4626.9,4626.3,0.001]
[1756307050846,6.72752231,4626.9,4626.3,0.001]
[1756307051198,5.80954819,4626.9,4626.3,0.001]
[1756307051342,6.46954819,4626.9,4626.3,0.001]
[1756307052461,10.24054819,4626.9,4626.3,0.001]
[1756307052779,6.46954819,4626.9,4626.3,0.001]
[1756307052994,10.24054819,4626.9,4626.3,0.001]
[1756307053169,7.70972332,4626.9,4626.3,0.001]
[1756307053368,5.80954819,4626.9,4626.3,0.001]
[1756307053782,6.46954819,4626.9,4626.3,0.001]
[1756307054608,10.24054819,4626.9,4626.3,0.001]
[1756307056015,4.30827391,4626.9,4626.3,0.001]
[1756307056200,10.71004806,4626.9,4626.3,0.001]
[1756307057487,5.82132099,4626.8,4626.3,0.001]
[1756307057681,5.92950786,4626.4,4626.3,0.001]
[1756307057893,9.90235425,4626.4,4626.3,0.001]
[1756307058781,0.66,4626.2,4625.8,0.021]
[1756307058983,5.26974149,4625.9,4625.8,0.021]
[1756307059297,9.24258887,4625.9,4625.8,0.021]
[1756307059903,3.30984738,4625.9,4625.8,0.021]
[1756307060203,0.108,4625.9,4625.8,0.021]
[1756307060404,0.44647574,4625.9,4625.8,0.021]
[1756307061511,5.60821723,4625.9,4625.8,0.021]
[1756307062027,7.42229955,4625.9,4625.8,0.021]
[1756307062250,11.39503913,4625.9,4625.8,0.021]
[1756307062405,11.39502401,4625.9,4625.8,0.021]
[1756307062611,7.62402401,4625.9,4625.8,0.021]
[1756307063921,7.42229955,4625.9,4625.8,0.021]
[1756307064620,0.33847574,4625.9,4625.8,2.18278823]
[1756307064821,0.44647574,4625.9,4625.8,2.18278823]
[1756307065029,0.108,4625.9,4625.8,2.18278823]
[1756307065228,0.108,4626.3,4626.2,2.16160131]
[1756307065430,0.33842782,4627.1,4626.2,2.16160131]
[1756307065431,0.33842782,4627.1,4626.2,1.663]
[1756307065600,0.108,4626.6,4626.5,2.16143616]
[1756307065796,0.108,4626.6,4626.3,2.16153974]
[1756307066008,0.1036774,4626.6,4626.4,2.16149288]
[1756307066208,3.0,4627.4,4626.2,1.663]
[1756307066393,3.0,4627.4,4626.3,2.16151251]
[1756307066719,0.108,4626.5,4626.2,3.82459523]
[1756307066920,0.108,4626.5,4626.2,1.663]
[1756307067228,0.108,4626.5,4626.4,2.16150786]
[1756307067729,0.108,4626.9,4626.3,2.26955459]
[1756307067922,0.108,4626.9,4626.8,2.16132099]
[1756307068125,0.108,4627.2,4626.8,3.77]
[1756307068420,0.02,4627.8,4626.8,3.77]
[1756307068421,0.02,4627.8,4627.4,2.16102391]
[1756307068625,0.02,4627.8,4627.5,2.16097342]
[1756307069231,0.02,4627.8,4627.6,2.16094221]
[1756307069400,0.02,4627.8,4627.2,1.663]
[1756307069401,0.02,4627.8,4627.7,2.16090066]
[1756307069607,0.35831787,4627.8,4627.2,1.663]
[1756307069802,0.35831787,4627.8,4627.5,2.16099405]
[1756307070005,0.35831787,4627.8,4627.7,2.16090066]
[1756307070006,0.02,4627.8,4627.7,2.16090066]
[1756307070190,0.02,4627.8,4627.7,5.93090066]
[1756307070395,0.02,4627.8,4627.7,6.03890066]
[1756307070626,0.02,4627.8,4627.7,2.26890066]
[1756307070923,0.02,4627.8,4627.7,6.48189013]
[1756307070924,0.0192,4627.8,4627.7,6.48189013]
[1756307071138,0.0192,4627.8,4627.7,2.71189013]
[1756307071346,0.0192,4627.8,4627.7,6.50349913]
[1756307071500,0.0192,4627.8,4627.7,6.48189013]
[1756307072021,0.0192,4627.8,4627.7,2.71189013]
[1756307072273,0.0192,4627.8,4627.7,6.48189013]
[1756307074222,0.0192,4627.8,4627.7,6.48089013]
[1756307074631,0.0192,4627.8,4627.7,6.37289013]
[1756307075014,0.0192,4627.8,4627.7,5.92990066]
[1756307075425,0.0192,4627.8,4627.7,2.16090066]
[1756307075620,0.0192,4627.8,4627.6,2.16094462]
[1756307075834,0.0192,4627.8,4627.7,3.769]
[1756307075996,0.0192,4627.8,4627.5,2.16095275]
[1756307076199,0.0192,4627.8,4627.6,3.769]
[1756307076422,0.108,4627.7,4627.2,3.769]
[1756307076626,0.108,4627.3,4627.1,5.93018031]
[1756307076852,0.108,4627.3,4627.1,3.769]
[1756307077275,0.1292,4627.8,4627.7,2.16090066]
[1756307077545,0.0212,4627.8,4627.7,5.92990066]
[1756307077841,0.0212,4627.8,4627.7,7.59190066]
[1756307078436,0.1292,4627.8,4627.7,7.59190066]
[1756307079638,0.1292,4627.8,4627.7,1.662]
[1756307080135,0.1292,4627.8,4627.7,7.59090066]
[1756307082441,0.0212,4627.8,4627.7,8.56608824]
[1756307082753,0.0212,4627.8,4627.7,8.67408824]
[1756307083118,0.002,4628.3,4628.2,2.16066721]
[1756307083358,0.002,4628.3,4628.2,5.92866721]
[1756307083587,0.002,4628.3,4628.2,8.92866721]
[1756307083785,0.002,4628.3,4628.2,10.14560742]
[1756307085076,0.002,4628.3,4628.2,6.37760742]
[1756307085370,0.002,4628.3,4628.2,5.92866721]
[1756307086064,0.002,4628.3,4628.2,6.03666721]
[1756307086436,1e-08,4628.3,4628.2,6.03666721]
[1756307086634,1e-08,4628.3,4628.2,9.03666721]
[1756307087042,1e-08,4628.3,4628.2,5.26866721]
[1756307087281,1e-08,4628.3,4628.2,9.77860742]
[1756307087459,1e-08,4628.3,4628.2,6.03566721]
[1756307087787,1e-08,4628.3,4628.2,5.92766721]
[1756307087962,1e-08,4628.3,4628.2,2.16066721]
[1756307088139,0.10800001,4628.3,4628.2,5.92766721]
[1756307088340,0.10800001,4628.3,4628.1,2.16069456]
[1756307088541,0.10800001,4628.3,4628.2,3.767]
[1756307088837,0.10800001,4628.3,4628.2,5.92766721]
[1756307089234,0.10800001,4628.3,4627.8,0.02]
[1756307089471,1e-08,4628.3,4627.9,3.767]
[1756307089649,0.21605628,4628.2,4627.9,3.767]
[1756307089846,5.82080727,4627.9,4627.8,0.02]
[1756307090482,6.15915448,4627.9,4627.8,0.02]
[1756307092581,0.66,4627.6,4627.0,3.507]
[1756307092780,2.82095216,4627.6,4627.0,3.507]
[1756307092985,0.108,4627.1,4627.0,3.507]
[1756307093758,0.44635519,4627.1,4627.0,3.507]
[1756307095061,0.44635519,4627.1,4626.8,3.788]
[1756307095261,3.66,4626.9,4626.8,0.021]
[1756307095464,6.74723256,4626.9,4626.8,0.021]
[1756307097855,10.51423256,4626.9,4626.8,0.021]
[1756307099476,10.85268474,4626.9,4626.8,0.021]
[1756307100502,0.44645218,4626.9,4626.8,0.021]
[1756307100978,3.26772646,4626.9,4626.8,0.021]
[1756307102484,3.35442846,4626.9,4626.8,0.021]
[1756307102684,6.35442846,4626.9,4626.8,0.021]
[1756307103203,7.22435462,4626.9,4626.8,0.021]
[1756307103376,7.88435462,4626.9,4626.8,0.021]
[1756307103803,8.80220654,4626.9,4626.8,0.021]
[1756307104508,4.86837834,4626.9,4626.8,0.021]
[1756307104676,4.97637834,4626.9,4626.8,0.021]
[1756307104877,0.44645218,4626.9,4626.8,0.021]
[1756307105507,0.108,4626.9,4626.8,0.021]
[1756307107204,0.108,4626.9,4626.8,2.18232099]
[1756307107508,0.108,4626.9,4626.8,2.54381855]
[1756307108706,0.108,4626.9,4626.8,6.31081855]
[1756307109608,0.33835061,4627.2,4627.1,2.16118086]
[1756307110512,0.33835061,4627.2,4627.1,2.26918086]
[1756307110876,0.108,4627.9,4627.8,2.16085396]
[1756307111084,1.52992616,4628.1,4628.0,2.16076058]
[1756307111430,1e-08,4628.3,4628.2,2.16066721]
[1756307111624,1e-08,4628.3,4628.2,5.92666721]
[1756307111787,1e-08,4628.3,4627.7,5.429]
[1756307112111,0.11,4628.2,4627.7,7.5898895]
[1756307112312,0.002,4628.2,4627.8,2.16085264]
[1756307112485,0.108,4627.9,4627.8,2.16085264]
[1756307112895,0.108,4627.9,4627.7,5.429]
[1756307113379,0.44630373,4627.9,4627.2,2.16109308]
[1756307113575,0.108,4627.4,4627.3,3.766]
[1756307113803,0.108,4627.4,4627.3,5.92708745]
[1756307115392,0.108,4627.4,4627.0,1.662]
[1756307115591,0.66,4627.5,4626.8,0.021]
[1756307115921,2.26927428,4626.9,4626.8,0.021]
[1756307116151,0.108,4626.9,4626.8,0.021]
[1756307116490,2.26927428,4626.9,4626.8,0.021]
[1756307116937,5.92927428,4626.9,4626.8,0.021]
[1756307117448,3.108,4626.9,4626.8,0.021]
[1756307117618,0.108,4626.9,4626.8,0.021]
[1756307118691,2.26927428,4626.9,4626.8,0.021]
[1756307119020,5.71231528,4626.9,4626.8,0.021]
[1756307119179,6.7107188,4626.9,4626.8,0.021]
[1756307119906,6.7099188,4626.9,4626.8,0.021]
[1756307121297,6.7966208,4626.9,4626.8,0.021]
[1756307122121,10.4749188,4626.9,4626.8,0.021]
[1756307122486,6.7099188,4626.9,4626.8,0.021]
[1756307122689,0.44560352,4626.9,4626.8,0.021]
[1756307123718,5.6068778,4626.9,4626.8,0.021]
[1756307123921,6.2668778,4626.9,4626.8,0.021]
[1756307124119,6.2668778,4626.9,4626.3,1e-08]
[1756307124120,0.66,4626.7,4626.3,1e-08]
[1756307124333,5.82174149,4625.9,4624.8,0.02]
[1756307124509,2.16220891,4624.9,4624.8,0.02]
[1756307125117,5.50075231,4624.9,4624.8,0.02]
[1756307125337,5.82220891,4624.9,4624.8,0.02]
[1756307127208,9.58720891,4624.9,4624.8,0.02]
[1756307127448,11.73046409,4624.9,4624.8,0.02]
[1756307128832,12.06906627,4624.9,4624.8,0.02]
[1756307129862,12.06906627,4624.9,4624.8,0.021]
[1756307130376,8.30406627,4624.9,4624.8,0.021]
[1756307130725,3.33860218,4624.9,4624.8,0.021]
[1756307131146,5.50081109,4624.9,4624.8,0.021]
[1756307131850,9.92681109,4624.9,4624.8,0.021]
[1756307132232,7.76460218,4624.9,4624.8,0.021]
[1756307132433,3.33860218,4624.9,4624.8,0.021]
[1756307132628,3.99860218,4624.9,4624.8,0.021]
[1756307132942,6.87127131,4624.9,4624.8,0.021]
[1756307134247,6.97927131,4624.9,4624.8,0.021]
[1756307134753,5.82225566,4624.8,4624.3,0.001]
[1756307135066,5.82225566,4624.8,4623.8,0.021]
[1756307135067,2.82267652,4623.9,4623.8,0.021]
[1756307135232,9.69667652,4623.9,4623.8,0.021]
[1756307135948,9.03667652,4623.9,4623.8,0.021]
[1756307136155,9.69667652,4623.9,4623.8,0.021]
[1756307136432,10.14585582,4623.9,4623.8,0.021]
[1756307141036,6.37985582,4623.9,4623.8,0.021]
[1756307141241,10.14585582,4623.9,4623.8,0.021]
[1756307142588,3.108,4623.9,4623.8,0.021]
[1756307142791,0.33865495,4624.1,4624.0,2.16262975]
[1756307142959,0.33865495,4624.1,4623.8,0.021]
[1756307143155,0.33865495,4624.1,4624.0,2.16262975]
[1756307144387,0.33785495,4624.1,4624.0,2.16262975]
[1756307144682,3.0,4624.9,4624.4,2.16240248]
[1756307145020,3.766,4624.9,4623.9,2.16263853]
[1756307145157,6.766,4624.8,4623.8,2.18370893]
[1756307145362,6.766,4624.8,4623.8,0.021]
[1756307145584,6.12551878,4624.8,4623.8,0.021]
[1756307145750,2.16250608,4624.3,4623.8,0.021]
[1756307146163,0.33856195,4625.3,4623.9,3.78762676]
[1756307146488,3.0,4626.0,4623.9,3.78762676]
[1756307146648,0.329,4626.2,4624.0,0.38086268]
[1756307146849,0.329,4626.2,4625.4,2.16197154]
[1756307147067,0.329,4626.2,4624.1,0.02162582]
[1756307147068,0.329,4626.2,4625.2,2.16202768]
[1756307147265,2.18179095,4625.8,4624.7,1.664]
[1756307147466,2.18179095,4625.8,4624.8,2.16221757]
[1756307147677,2.18179095,4625.8,4624.9,2.16219527]
[1756307147882,0.02,4625.8,4624.7,1.664]
[1756307148077,0.02,4625.8,4624.8,0.75923331]
[1756307148265,0.02,4625.8,4625.1,2.16209571]
[1756307148495,0.02,4625.8,4624.9,2.16220891]
[1756307148965,0.02,4625.8,4624.7,1.664]
[1756307148966,3.0,4625.6,4624.7,1.664]
[1756307149166,0.6786,4625.5,4624.7,1.664]
[1756307149397,2.162029,4625.3,4624.3,2.16245149]
[1756307150000,0.33852167,4625.1,4624.4,2.16242013]
[1756307150570,0.33852167,4625.1,4624.5,2.16239489]
[1756307150765,0.33852167,4625.1,4624.3,0.02162489]
[1756307150966,0.33852167,4625.1,4624.7,2.16226796]
[1756307151368,0.33852167,4625.1,4624.5,2.16235099]
[1756307151563,0.33852167,4625.1,4624.1,0.001]
[1756307151766,3.0,4625.0,4624.1,0.001]
[1756307151967,5.16216681,4625.0,4624.1,2.16354286]
[1756307152404,3.0,4625.0,4624.2,2.16253568]
[1756307152909,0.108,4624.3,4624.2,2.16253568]
[1756307153113,0.108,4624.3,4624.2,2.76361423]
[1756307153539,3.0,4625.3,4624.6,2.16232454]
[1756307153837,3.0,4625.3,4624.4,2.16239617]
[1756307154036,0.33854291,4624.5,4624.4,2.16244269]
[1756307154325,0.108,4624.5,4624.3,2.16247977]
[1756307154479,0.44654108,4624.5,4624.4,2.16244269]
[1756307155100,0.44654108,4624.5,4624.4,2.59504058]
[1756307156214,0.022,4625.8,4625.7,2.16183496]
[1756307156714,0.13,4625.8,4625.7,2.16183496]
[1756307156890,0.13,4625.8,4625.3,2.16198181]
[1756307157086,0.13,4625.8,4625.2,3.765]
[1756307157287,0.108,4625.4,4625.3,2.16202192]
[1756307158314,0.108,4625.4,4625.3,3.13723557]
[1756307158934,0.108,4625.4,4625.3,3.15885578]
[1756307159224,0.108,4625.4,4625.3,3.13723557]
[1756307159516,0.108,4625.4,4625.3,2.16202192]
[1756307159719,0.108,4625.4,4625.2,3.765]
[1756307159886,0.108,4625.4,4625.0,1.663]
[1756307160090,0.108,4625.4,4625.1,3.764]
[1756307160421,0.108,4625.4,4625.3,2.16202192]
[1756307160624,0.108,4625.5,4625.4,2.16197518]
[1756307160790,0.022,4625.8,4625.7,2.16183496]
[1756307160990,0.022,4625.8,4625.7,5.92583496]
[1756307162326,1e-08,4625.8,4625.7,5.92583496]
[1756307162490,1e-08,4625.8,4625.7,10.4054113]
[1756307166555,1e-08,4626.8,4626.7,2.16136771]
[1756307166848,1e-08,4626.8,4626.7,7.69536771]
[1756307167208,1e-08,4626.8,4626.7,3.93236771]
[1756307167513,1e-08,4626.8,4626.7,8.30474807]
[1756307168919,0.00120001,4626.9,4626.8,2.16132099]
[1756307169742,0.00120001,4626.9,4626.8,5.92332099]
[1756307172262,0.00120001,4626.9,4626.8,6.08587425]
[1756307172629,0.00120001,4626.9,4626.8,6.85387425]
[1756307172630,1e-08,4626.9,4626.8,6.85387425]
[1756307172831,1e-08,4626.9,4626.8,7.99354263]
[1756307173131,1e-08,4626.9,4626.8,10.99354263]
[1756307174226,1e-08,4626.9,4626.8,10.33254263]
[1756307174428,1e-08,4626.9,4626.8,3.57154263]
[1756307174617,1e-08,4626.9,4626.8,7.35415583]
[1756307174820,1e-08,4626.9,4626.8,7.99254263]
[1756307175347,1e-08,4626.9,4626.8,8.01254263]
[1756307175857,1e-08,4626.9,4626.8,11.01254263]
[1756307176652,1e-08,4627.4,4627.3,5.82108745]
[1756307176848,1e-08,4627.9,4627.7,2.16090066]
[1756307177038,1e-08,4627.9,4627.8,5.44360853]
[1756307177240,1e-08,4627.9,4627.8,7.69085396]
[1756307177549,1e-08,4627.9,4627.8,12.33602942]
[1756307180025,1e-08,4628.3,4628.2,5.82066721]
[1756307180221,1e-08,4628.3,4628.2,9.68866721]
[1756307181571,1e-08,4628.3,4628.2,9.68766721]